Cogmind - Beta 13 @@@ ROGUE MODE // 2024.03.05 @ 15:49:24 Player: Treadwheel Result: Destroyed by AA-1KP(R) with Subdweller Beam Cannon Performance ------------- Evolutions (0) 0 Regions Visited (2) 400 Robots Destroyed (29) 145 Value Destroyed (641) 641 Prototype IDs (0) 0 Alien Tech Used (0) 0 Bonus (0) 0 TOTAL SCORE: 1186 Bonus ------- None Cogmind --------- Core Integrity 0/250 Matter 300/300 Energy 160/160 System Corruption 0% Temperature Cool (9) Movement Rolling (145) Ox3 Location -10/Subcaves Parts ------- > --- POWER (1) -------- Light Nuclear Core > --- PROPULSION (2) --- Light Treads Compact Wheel > --- UTILITY (2) ------ High-capacity Storage Unit Sensor Array > --- WEAPON (2) ------- Subdweller Laser Beam Cannon > --- INVENTORY (20) --- Light Ion Engine Light Treads Light Treads Light Treads Light Treads Light Treads Light Treads Light Treads Subdweller Monowheel Subdweller Monowheel Medium Storage Unit Subdweller Optics Transport Network Coupler Recalibrator Beam Cannon Grenade Launcher Datajack Mining Claw Scrap Shield Fragment (48) Scrap Shield Fragment (46) Peak State ------------ > --- POWER ------------ Light Nuclear Core > --- PROPULSION ------- Light Treads Compact Wheel > --- UTILITY ---------- High-capacity Storage Unit Sensor Array > --- WEAPON ----------- Riot Gun Beam Cannon > --- INVENTORY -------- Light Nuclear Core Light Treads Light Treads Light Treads Light Treads Light Treads Light Treads Light Treads Medium Storage Unit Transport Network Coupler Recalibrator Particle Gun Beam Cannon Grenade Launcher Datajack Mining Claw [Rating: 13] Favorites ----------- Power Ion Engine Engine Ion Engine Power Core Light Nuclear Core Propulsion Light Treads Treads Light Treads Leg Aluminum Leg Wheel Compact Wheel Utility Sensor Array Device Sensor Array Storage High-capacity Storage Unit Protection Light Armor Plating Weapon Light Cannon Energy Gun Medium Laser Energy Cannon Beam Cannon Ballistic Gun Assault Rifle Ballistic Cannon Light Cannon Launcher Grenade Launcher Slashing Weapon Mining Claw Build | -11 -10 -10 ------- Run | Yrd Mat Sub Slots Evolved . | . . . Power . | . . . Propulsion . | . . . Utility . | . . . Weapon . | . . . Parts Attached 32 | 3 14 15 Power 2 | . . 2 Engine . | . . . Core 2 | . . 2 Reactor . | . . . Propulsion 5 | 2 1 2 Treads 2 | 1 . 1 Leg . | . . . Wheel 3 | 1 1 1 Hover . | . . . Flight . | . . . Utility 13 | 1 9 3 Device 7 | 1 4 2 Storage 3 | . 3 . Processor . | . . . Hackware . | . . . Protection 3 | . 2 1 Artifact . | . . . Weapon 12 | . 4 8 Energy Gun 4 | . . 4 Energy Cannon 2 | . . 2 Ballistic Gun 2 | . 2 . Ballistic Cannon 2 | . 1 1 Launcher 1 | . . 1 Special Weapon . | . . . Impact Weapon . | . . . Slashing Weapon 1 | . 1 . Piercing Weapon . | . . . Special Melee Weapon . | . . . Unidentified Prototypes . | . . . Parts Lost 9 | . 1 8 Power 2 | . . 2 Propulsion 2 | . . 2 Utility 1 | . . 1 Weapon 4 | . 1 3 Highest Loss Streak 4 | . 1 4 To Critical Strikes . | . . . Average Slot Usage (%) 99 | . 99 98 Engine 12 | . 14 6 Core 1 | . . 7 Treads 14 | . 14 14 Wheel 13 | . 13 13 Device 9 | . 9 12 Storage 14 | . 14 14 Protection 3 | . 4 . Energy Gun 6 | . 6 6 Energy Cannon 2 | . . 13 Ballistic Gun 5 | . 7 . Ballistic Cannon 11 | . 13 6 Naked Turns . | . . . Heaviest Build 54 | 15 51 54 Greatest Support 20 | 20 16 16 Greatest Overweight (x) 3 | . 3 3 Average Overweight (x) 1 | . 1 2 Largest Inventory Capacity 20 | 8 20 20 Average Capacity 15 | 8 14 20 Most Carried 20 | 7 20 20 Average Carried 13 | 6 12 18 Final Capacity 20 | 8 20 20 Final Carried 20 | 7 20 20 Class Distribution -------------------- 94% | Mutant 5% | Scavenger-Mutant Dominant Class ---------------- Mutant | -10/Materials Mutant | -10/Subcaves Resources | -11 -10 -10 ----------- Run | Yrd Mat Sub Matter Collected 806 | 222 346 238 Remotely . | . . . Salvage Created 776 | 12 496 268 Parts 55 | 5 30 20 Haulers Intercepted 2 | . 2 . Recyclers Shooed 1 | . 1 . Parts Field Recycled . | . . . Retrieved Matter . | . . . Parts Self-Destructed 21 | . . 21 Prevented 2 | . . 2 Kills | -11 -10 -10 ------- Run | Yrd Mat Sub Combat Hostiles Destroyed 18 | . 9 9 Melee 1 | . 1 . Guns 4 | . 1 3 Cannons 13 | . 7 6 Classes Destroyed 10 | 1 7 2 Worker 1 | . 1 . Tunneler 1 | 1 . . Hauler 2 | . 2 . Recycler 1 | . 1 . Mechanic 1 | . 1 . Turret 2 | . . 2 Watcher 3 | . 3 . Swarmer 7 | . 3 4 Grunt 10 | . 6 4 Subdweller 1 | . . 1 Best Kill Streak 4 | 1 3 4 Combat Bots Only 4 | . 2 4 Max Kills in Single Turn 1 | 1 1 1 Gunslinging . | . . . Exploded . | . . . Melee 1 | . 1 . Uniques/NPCs Destroyed . | . . . Combat | -11 -10 -10 -------- Run | Yrd Mat Sub Hostile Shots Fired 175 | . 60 115 Missed 51 | . 10 41 Damage Taken 1229 | . 550 679 Core 266 | . 116 150 Absorbed by Shields . | . . . Regen/Repaired (Parts) 12 | . 12 . Core Remaining (%) 100 | 100 . . Volleys Fired 82 | 1 49 32 Largest 2 | 2 2 2 Hottest 125 | 70 85 125 Shots Fired 157 | 2 98 57 Gun 64 | 2 49 13 Cannon 86 | . 49 37 Launcher 7 | . . 7 Special . | . . . Kinetic 66 | 1 53 12 Thermal 79 | 1 45 33 Explosive 7 | . . 7 Electromagnetic 5 | . . 5 Robot Hit Streak 11 | 2 8 11 Robot Miss Streak 3 | . 3 3 Penetration Max . | . . . Secondary Targets . | . . . Shots Hit Robots 107 | 2 67 38 Core Hits 48 | 1 24 23 Critical Kills . | . . . Critical Parts Destroyed . | . . . Critical Strikes 4 | . 3 1 Burn 2 | . 2 . Blast 2 | . 1 1 Melee Attacks 3 | . 3 . Impact . | . . . Slashing 3 | . 3 . Piercing . | . . . Sneak Attacks . | . . . Combat Hostiles . | . . . Follow-up Attacks . | . . . Damage Inflicted 1817 | 23 1074 720 Guns 601 | 23 431 147 Cannons 1028 | . 595 433 Explosions 140 | . . 140 Melee 48 | . 48 . Ramming . | . . . Kinetic 738 | 10 605 123 Thermal 838 | 13 421 404 Explosive 140 | . . 140 Electromagnetic 53 | . . 53 Impact . | . . . Slashing 48 | . 48 . Piercing . | . . . Highest Corruption . | . . . Average Corruption . | . . . Corruption Purged . | . . . Corruption Blocked . | . . . Overload Shots . | . . . Overflow Damage 3 | . 3 . Projectiles . | . . . Explosions . | . . . Melee 3 | . 3 . Knockbacks 14 | . 11 3 Impact . | . . . Kinetic 14 | . 11 3 Secondary . | . . . Self-Inflicted Damage . | . . . Shots . | . . . Rammed . | . . . Targets Rammed . | . . . Kicked . | . . . Crushed . | . . . Highest Temperature 396 | 9 396 99 Average Temperature 88 | 6 96 26 Received Heat Transfer 546 | . 222 324 Effects 1 | . 1 . Shutdowns 1 | . 1 . Siege Activations . | . . . Robots Corrupted . | . . . Combat Hostiles . | . . . Parts Fried . | . . . Impact Corruptions . | . . . Robots Melted . | . . . Combat Hostiles . | . . . Parts Melted 2 | . 1 1 Heat Transferred 2246 | 37 1406 803 Parts Sabotaged . | . . . Parts Stolen . | . . . Parts Stripped . | . . . Power Chain Reactions . | . . . Alert | -11 -10 -10 ------- Run | Yrd Mat Sub Peak Influence 181 | 5 181 . Initial 3 | . 3 . Average 34 | 1 35 . Maximum Alert Level . | . . . Low Security (%) 100 | 100 100 . Level 1 . | . . . Level 2 . | . . . Level 3 . | . . . Level 4 . | . . . Level 5 . | . . . High Security . | . . . Max Security . | . . . Squads Dispatched . | . . . Investigation . | . . . Extermination . | . . . Reinforcement . | . . . Assault . | . . . Garrison . | . . . Intercept . | . . . Searches Triggered . | . . . Construction Impeded . | . . . Haulers Reinforced . | . . . Active Scanning Responses . | . . . Cargo Convoy Interrupts . | . . . Stealth | -11 -10 -10 --------- Run | Yrd Mat Sub Distress Signals 2 | . 2 . Communications Jammed . | . . . Distress Signals . | . . . Times Spotted 63 | . 23 40 Peak Tracking Total 5 | . 4 5 Tactical Retreats 7 | . 4 3 Traps | -11 -10 -10 ------- Run | Yrd Mat Sub Traps Triggered . | . . . Indirectly . | . . . Trap Hack Attempts . | . . . Triggered . | . . . Disarmed 6 | . 6 . Reprogrammed . | . . . Reused . | . . . Traps Extracted . | . . . Installed . | . . . Triggered . | . . . Machines | -11 -10 -10 ---------- Run | Yrd Mat Sub Machines Disabled 4 | . . 4 Max in Single Turn 2 | . . 2 Machines Repaired . | . . . Machines Dismantled . | . . . Machines Sabotaged . | . . . Overloaded Fab Kills . | . . . Hacking | -11 -10 -10 --------- Run | Yrd Mat Sub Machines Accessed 9 | . 9 . Terminals 6 | . 6 . Fabricators . | . . . Repair Stations 1 | . 1 . Recycling Units 2 | . 2 . Scanalyzers . | . . . Garrison Access . | . . . Total Hacks 34 | . 34 . Successful 18 | . 18 . Failed 16 | . 16 . Catastrophic 3 | . 3 . Database Lockouts . | . . . Manual 12 | . 12 . Terminals 23 | . 23 . Fabricators . | . . . Repair Stations 6 | . 6 . Recycling Units 5 | . 5 . Scanalyzers . | . . . Garrison Access . | . . . Terminal Hacks 8 | . 8 . Alert Level 1 | . 1 . Unreport Threat 3 | . 3 . Locate Traps 2 | . 2 . Disarm Traps 1 | . 1 . Hauler Manifests 1 | . 1 . Fabricator Hacks . | . . . Repair Station Hacks 3 | . 3 . Scan Component 1 | . 1 . Repair 1 | . 1 . Refit 1 | . 1 . Recycling Unit Hacks 2 | . 2 . Retrieve Matter 1 | . 1 . Retrieve Components 1 | . 1 . Scanalyzer . | . . . Garrison Access Hacks . | . . . Unauthorized Hacks 5 | . 5 . Terminals 3 | . 3 . Botnet 2 | . 2 . Operators 1 | . 1 . Fabricators . | . . . Repair Stations . | . . . Recycling Units 2 | . 2 . Reject 2 | . 2 . Scanalyzers . | . . . Garrison Access . | . . . Data Cores Recovered . | . . . Used . | . . . Hacking Detections 9 | . 9 . Full Trace Events . | . . . Feedback Events . | . . . Feedback Blocked . | . . . Robot Schematics Acquired . | . . . Robots Built . | . . . Authchips . | . . . Time . | . . . Total Robot Build Rating . | . . . Part Schematics Acquired . | . . . Parts Built . | . . . Authchips . | . . . Time . | . . . Total Part Build Rating . | . . . Parts Repaired 1 | . 1 . Time 26 | . 26 . Parts Recycled . | . . . Recycled Matter . | . . . Retrieved Matter . | . . . Retrieved Components 10 | . 10 . Parts Scanalyzed . | . . . Part Schematics Acquired . | . . . Parts Damaged . | . . . Bothacking | -11 -10 -10 ------------ Run | Yrd Mat Sub Used RIF Installer . | . . . Robots Hacked . | . . . Non-combat . | . . . Combat . | . . . Robot Hacks Applied . | . . . Relay Couplers Released . | . . . Fabnet Peak Effective % . | . . . Robots Rewired . | . . . Allies Hacked . | . . . Hacks Repelled . | . . . Allies | -11 -10 -10 -------- Run | Yrd Mat Sub Total Allies . | . . . Largest Group . | . . . Highest-Rated Group . | . . . Highest-Rated Ally . | . . . Total Orders . | . . . Ally Attacks . | . . . Total Damage . | . . . Kills . | . . . Allies Corrupted . | . . . Allies Melted . | . . . Intel | -11 -10 -10 ------- Run | Yrd Mat Sub Robot Analysis Total . | . . . Derelict Logs Recovered . | . . . Drone Launches . | . . . Drone Recoveries . | . . . Exploration | -11 -10 -10 ------------- Run | Yrd Mat Sub Turns Passed 2241 | 59 1720 462 Spaces Moved 1380 | 43 1137 200 Core . | . . . Treads . | . . . Legs 30 | 30 . . Wheels 1350 | 13 1137 200 Hover . | . . . Flight . | . . . Fastest Speed 100 | 100 100 130 Average Speed 123 | 113 120 144 Slowest Speed 145 | 120 145 145 Overloaded Moves . | . . . Propulsion Burnouts . | . . . Robots Hopped . | . . . Cave-ins Triggered . | . . . Exploration Rate (%) 36 | 4 97 9 Regions Visited 2 Branch Regions 1 Pre-discovered Areas . | . . . Known Exits Taken . | . . . Unknown Exits Taken 2 | 1 1 . Scrap Searched 1 | . . 1 Spaces Dug . | . . . Terrain Destroyed 15 | . . 15 Melee . | . . . Projectile . | . . . AOE 15 | . . 15 Terrain Rammed . | . . . Walls Destroyed . | . . . Machines Disabled . | . . . Actions | -11 -10 -10 --------- Run | Yrd Mat Sub Total 1751 | 49 1388 314 Wait 202 | 2 147 53 Move 1378 | 42 1136 200 Hop . | . . . Pick Up 34 | 1 22 11 Fast Attach 4 | 1 3 . Attach 10 | . 2 8 Detach 3 | . 3 . Swap 18 | 2 9 7 Drop 17 | . 14 3 Fire 82 | 1 49 32 Melee 3 | . 3 . Ram . | . . . Kick . | . . . Crush . | . . . Escape Stasis . | . . . Rewire . | . . . Trap . | . . . Miscellaneous . | . . . Route ------- -11/Scrapyard -10/Materials (discovered 6 exits: [*Mat x3] / [*Min x2] / [*Sub]) -10/Subcaves (discovered 1 exit: [*Rec]) History --------- Turn | Location | Event 1 | -11/Scrapyard | Discovered new exit (range 3) 60 | -11/Scrapyard | Entered Materials 190 | -10/Materials | Discovered new exit (range 9) 340 | -10/Materials | Build established: Mutant 402 | -10/Materials | Repaired Com. Wheel 618 | -10/Materials | Discovered new exit (range 6) 697 | -10/Materials | Discovered new exit (range 6) 824 | -10/Materials | Discovered new exit (range 12) 1296 | -10/Materials | Discovered new exit (range 16) 1767 | -10/Materials | Discovered new exit (range 10) 1780 | -10/Materials | Entered Subcaves 1916 | -10/Subcaves | Core integrity fell below 50% 2009 | -10/Subcaves | Discovered new exit (range 13) 2018 | -10/Subcaves | Core integrity fell below 20% 2032 | -10/Subcaves | Lost 4 parts (1p1n2w) 2242 | -10/Subcaves | Destroyed by AA-1KP(R) with Subdweller Beam Cannon Last Messages --------------- 02034_ The unstable cave ceiling collapses. 02036_ Autobeam Turret destroyed. 02058_ Acquired 13 matter. 02061_ Acquired Lgt. Ion Engine. 02080_ Acquired 30 matter. 02083_ Acquired Scrap Shield Fragment. 02086_ Acquired Sub. Monowheel. 02088_ Acquired Sub. Optics. 02091_ Acquired Scrap Shield Fragment. 02093_ Acquired Sub. Laser. 02100_ Acquired 20 matter. 02101_ Acquired 11 matter. 02142_ Acquired 26 matter. 02185_ Lgt. Nuclear Core destroyed. 02191_ Sub. Optics melted. 02191_ 2L-9J4(R) destroyed. 02197_ Acquired 10 matter. 02201_ Acquired Sub. Monowheel. 02209_ Dropped Scrap Shield Fragment. 02209_ Acquired Scrap Shield Fragment. Map ----- +----------------------------------------------------+ | ??????????????????????????????????????????? | | ??????????????????????????????????????????? | | ??????????????????????????????????????????? | | ??????????????????????????????????????????? | | ??????????????????????????????????????????? | | ??????????????????????????????????????????? | | ??????????????????????###?????????????????? | | ??????????????????????" ##????????????????? | | ????????????????????? ##???????????????? | | ????????????????????"" ????????????????? | | ????????????????????"" ????????????????? | | ???????????????????"" #????????????????? | | ???????????????????"" #????????????????? | | ???????????????????" #????????????????? | | ???????????????????" #?????####???????? | | ????????????????????" ?????## ##??????? | | ?????????????????????" #????## ##?????? | | ????????????????????##""#???## #?????? | | ????????????????????# "##### #?#?? | | ????????????????????# # ### | | ????????????????#???# | | ???????????????## ?## ## [ | | ???????????????# ## ###### = # | | ???????????????#R # ###????# ## | | ???????????????## # ##?????### &##### | | ???????????????# @# #????## %& #?? | | ???????????????## ##?#### & #???## | | ???????????????# # ### ##????? | | ???????????????## # ## #?????? | | ???????????????? # ####### | | ???????????????## ## | | ????????????????### | | ??????????????????## # ## ## | | ???????????????????######## ## = ##### | | ??????????????????????????#### " #???? | | ?????????????????????????????# " " #???? | | ?????????????????????????????# " " #???? | | ?????????????????????????????## #???? | | ??????????????????????????????# #???? | | ?????????????????????????????# ???? | | ?????????????????????????????# ## ??? | | ?????????????????????????????## #?## ?? | | ??????????????????????????????##???#### ? | | ???????????????????????????????????????## ? | | ?????????????????????????????????????????#? | | ??????????????????????????????????????????? | | ??????????????????????????????????????????? | | ??????????????????????????????????????????? | | ??????????????????????????????????????????? | | ??????????????????????????????????????????? | +----------------------------------------------------+ Best States ------------- Heat Dissipation 25 Energy Generation 14 Energy Capacity 250 Matter Stores 300 Matter Capacity 300 Sight Range 16 Robot Scan Range 14 Terrain Scan Density 10 Armor Coverage 150 Evasion (%) 55 Recoil Reduction 1 Item Schematics ----------------- None Robot Schematics ------------------ None Fabricated ------------ Nothing Alien Tech Used ----------------- None Achievements -------------- None Challenges ------------ None Game ------ Seed MiniGammaRefractor Manual? 0 Play Time 00:27:47 Cumulative 49.3 hours Start 2024.03.05 @ 14:39:07 End 2024.03.05 @ 15:49:24 Sessions 1 Manual Loads 0 Difficulty Rogue Special Mode None Game No. 27 Rogue 27 Adventurer 0 Explorer 0 Win Type - Total 1 Types 1/0/0/0/0/0/0/0/0 Lore% 30 Gallery% 46 Achievement% 36 Wizard Run 0 Options --------- Layout 0 ASCII 0 Keyboard 0 Movement Numpad Keybinds 0 Fullscreen 1 Font 12/Smallcaps Map View 83x54 Zoom Use 0% Tactical HUD 1 Map Filters NONE Filters NONE Steam 1 RUN: e9ac883f-0875-4fd5-b61a-cb17f7e59d5a